bitfinex-derivatives/quotes_BTCF0:USTF0_20250510
["timestamp","ask_amount","ask_price","bid_price","bid_amount"]
[1746919393664,0.1908301,104800.0,104790.0,0.6470567]
[1746919393864,0.2557,104810.0,104800.0,0.1908301]
[1746919394065,0.3631119,104810.0,104800.0,0.1908301]
[1746919394265,0.5291119,104810.0,104800.0,0.2862545]
[1746919394469,0.3383,104810.0,104800.0,0.6470545]
[1746919394672,0.5291119,104810.0,104800.0,0.2862545]
[1746919395076,0.3383,104810.0,104800.0,0.6470545]
[1746919395377,0.2538,104810.0,104800.0,0.6470545]
[1746919395578,0.2538,104810.0,104800.0,0.7298545]
[1746919395770,0.2538,104810.0,104800.0,1.18766164]
[1746919395970,0.2538,104810.0,104800.0,0.9128545]
[1746919396170,0.0878,104810.0,104800.0,1.0788545]
[1746919396370,0.001,104820.0,104810.0,0.1908119]
[1746919396572,0.001,104820.0,104810.0,0.6250919]
[1746919396877,0.0831,104820.0,104810.0,0.9858919]
[1746919397071,0.0831,104820.0,104810.0,1.08130719]
[1746919397980,0.0831,104820.0,104810.0,1.35611433]
[1746919398880,0.001,104820.0,104810.0,1.35611433]
[1746919399077,0.00755641,104840.0,104830.0,0.1907755]
[1746919399282,0.00755641,104840.0,104830.0,1.4567755]
[1746919399481,0.19831371,104840.0,104830.0,0.9959755]
[1746919399779,0.60681671,104840.0,104830.0,0.1907755]
[1746919399979,0.73620761,104840.0,104830.0,0.28618169]
[1746919400186,0.90220761,104840.0,104830.0,0.28618169]
[1746919400978,0.90220761,104840.0,104830.0,0.09540619]
[1746919401172,0.1907937,104820.0,104810.0,0.47737219]
[1746919401572,0.2785937,104820.0,104810.0,0.57276018]
[1746919401783,0.2785937,104820.0,104810.0,0.39596018]
[1746919402085,0.2785937,104820.0,104810.0,0.30055758]
[1746919402284,0.2785937,104820.0,104810.0,0.10976018]
[1746919402578,0.2785937,104820.0,104810.0,0.30057208]
[1746919402772,0.3671937,104820.0,104810.0,0.30057208]
[1746919403185,0.1908301,104800.0,104790.0,0.2385516]
[1746919403586,0.1908483,104790.0,104780.0,1.4300456]
[1746919403879,0.2786483,104790.0,104780.0,1.7908456]
[1746919404080,0.4446483,104790.0,104780.0,1.88625179]
[1746919405584,0.5346483,104790.0,104780.0,1.88625179]
[1746919405785,0.5346483,104790.0,104780.0,1.83853539]
[1746919407377,0.1908847,104770.0,104760.0,0.19333424]
[1746919407777,0.3628847,104770.0,104760.0,0.19333424]
[1746919408082,0.5288847,104770.0,104760.0,0.28876774]
[1746919408275,0.338,104770.0,104760.0,0.64956774]
[1746919408480,0.338,104770.0,104760.0,0.46416774]
[1746919408679,0.5288847,104770.0,104760.0,0.46416774]
[1746919408973,0.5288847,104770.0,104760.0,0.82496774]
[1746919409182,0.338,104770.0,104760.0,0.82496774]
[1746919409483,0.5288847,104770.0,104760.0,0.82496774]
[1746919409974,0.5288847,104770.0,104760.0,0.64956774]
[1746919410285,0.3628847,104770.0,104760.0,0.64956774]
[1746919410485,0.172,104770.0,104760.0,0.64956774]
[1746919410679,0.3628847,104770.0,104760.0,0.81806774]
[1746919410874,0.7236847,104770.0,104760.0,0.09786744]
[1746919411080,0.3628847,104770.0,104760.0,0.28877044]
[1746919411275,0.338,104770.0,104760.0,0.64957044]
[1746919411479,0.120192,104770.0,104760.0,0.73117044]
[1746919411678,0.120192,104770.0,104760.0,0.91807044]
[1746919412184,0.1796,104780.0,104770.0,0.1908847]
[1746919412377,0.3704665,104780.0,104770.0,0.5516847]
[1746919412583,0.3704665,104780.0,104770.0,0.1908847]
[1746919412882,0.3704665,104780.0,104770.0,0.64713642]
[1746919413084,0.3704665,104780.0,104770.0,0.28633642]
[1746919413288,0.3704665,104780.0,104770.0,0.46193642]
[1746919413988,0.1796,104780.0,104770.0,0.46174008]
[1746919414176,0.3704665,104780.0,104770.0,0.46174008]
[1746919414488,0.1796,104780.0,104770.0,0.46174008]
[1746919414681,0.07223673,104800.0,104790.0,0.1908483]
[1746919414880,0.07223673,104800.0,104790.0,1.09489544]
[1746919415075,0.15643673,104800.0,104790.0,1.27019544]
[1746919415281,0.15643673,104800.0,104790.0,1.89241984]
[1746919416183,0.07223673,104800.0,104790.0,1.6176127]
[1746919416391,0.26306683,104800.0,104790.0,1.6176127]
[1746919416586,0.43876683,104800.0,104790.0,1.6176127]
[1746919417181,0.5325301,104800.0,104790.0,1.4516127]
[1746919418979,0.3417,104800.0,104790.0,1.4516127]
[1746919419181,0.5325301,104800.0,104790.0,1.4516127]
[1746919420090,0.8933301,104800.0,104790.0,0.5547127]
[1746919420683,0.8933301,104800.0,104790.0,0.2862727]
[1746919420885,0.96556683,104800.0,104790.0,0.2862727]
[1746919421593,0.1908483,104790.0,104780.0,0.5480445]
[1746919421888,0.3672483,104790.0,104780.0,0.6434689]
[1746919422191,0.5332483,104790.0,104780.0,0.6434689]
[1746919422389,0.3424,104790.0,104780.0,1.0042689]
[1746919422581,0.3424,104790.0,104780.0,0.8156689]
[1746919422783,0.3424,104790.0,104780.0,1.1764689]
[1746919423482,0.51145151,104790.0,104780.0,1.1764689]
[1746919423683,0.51145151,104790.0,104780.0,1.45127604]
[1746919424186,0.33505151,104790.0,104780.0,1.45127604]
[1746919424385,0.33505151,104790.0,104780.0,1.1764689]
[1746919425286,0.11942603,104800.0,104790.0,0.1908483]
[1746919425489,3e-08,104800.0,104790.0,1.22175544]
[1746919425789,6e-08,104810.0,104800.0,0.2908301]
[1746919425983,6e-08,104810.0,104800.0,2.2578501]
[1746919426189,6e-08,104810.0,104800.0,2.6032661]
[1746919426494,6e-08,104810.0,104800.0,2.44868139]
[1746919426704,0.16995852,104850.0,104810.0,0.4770288]
[1746919426888,0.1183503,104880.0,104870.0,0.1907027]
[1746919427087,6e-08,104880.0,104870.0,1.69342984]
[1746919427287,0.1838,104890.0,104880.0,0.1906845]
[1746919427490,0.1838,104890.0,104880.0,0.7276845]
[1746919427689,0.1838,104890.0,104880.0,0.3668845]
[1746919427988,0.3744664,104890.0,104880.0,0.46227704]
[1746919428193,0.3744664,104890.0,104880.0,0.82307704]
[1746919428388,0.1838,104890.0,104880.0,0.73917704]
[1746919428692,0.42302893,104920.0,104880.0,0.78849254]
[1746919428893,0.06222893,104920.0,104910.0,0.91223]
[1746919429098,0.16278498,104930.0,104920.0,0.1906118]
[1746919429399,0.16278498,104930.0,104920.0,1.26763894]
[1746919429598,0.16278498,104930.0,104920.0,1.35526782]
[1746919429798,0.1905937,104930.0,104920.0,1.19963872]
[1746919429993,0.1905937,104930.0,104920.0,1.42955158]
[1746919430205,0.00655349,104940.0,104930.0,0.1905937]
[1746919430494,0.19712899,104940.0,104930.0,0.5439]
[1746919430799,0.28132899,104940.0,104930.0,0.63920617]
[1746919430992,0.37162899,104940.0,104930.0,0.63920617]
[1746919431195,0.37162899,104940.0,104930.0,0.82979987]
[1746919431395,0.37162899,104940.0,104930.0,0.46899987]
[1746919431694,0.1906118,104920.0,104910.0,0.26405692]
[1746919432197,0.5391118,104920.0,104910.0,0.26405692]
[1746919432386,0.5391118,104920.0,104910.0,0.55000217]
[1746919432788,0.5391118,104920.0,104910.0,0.35937217]
[1746919433097,0.3576118,104920.0,104910.0,0.55000217]
[1746919433288,0.1916118,104920.0,104910.0,1.08470217]
[1746919433491,0.5369278,104920.0,104910.0,0.09531525]
[1746919433691,0.5369278,104920.0,104880.0,0.7253835]
[1746919433692,0.1906664,104890.0,104880.0,0.7253835]
[1746919434001,1.1462625,104910.0,104900.0,0.1906482]
[1746919434197,1.2329625,104910.0,104900.0,0.1906482]
[1746919434597,0.2626,104910.0,104900.0,0.20529141]
[1746919434793,0.001,104920.0,104910.0,0.19063]
[1746919434993,0.2797118,104920.0,104910.0,0.64323]
[1746919435190,0.0881,104920.0,104910.0,0.73093]
[1746919435392,0.2787118,104920.0,104910.0,0.82624525]
[1746919436296,0.2797118,104920.0,104910.0,0.45611525]
[1746919436498,0.3681118,104920.0,104910.0,0.09531525]
[1746919436899,0.3681118,104920.0,104910.0,0.28594525]
[1746919437097,0.5341118,104920.0,104910.0,0.28594525]
[1746919437294,0.5341118,104920.0,104910.0,0.09531525]
[1746919437495,0.8949118,104920.0,104910.0,0.09531525]
[1746919437695,0.5341118,104920.0,104910.0,0.09531525]
[1746919438304,0.8949118,104920.0,104910.0,0.09531525]
[1746919439005,0.8949118,104920.0,104910.0,0.28594525]
[1746919439204,0.5341118,104920.0,104910.0,0.64674525]
[1746919439805,0.00655349,104940.0,104930.0,0.1905937]
[1746919439992,0.00655349,104940.0,104930.0,1.42036084]
[1746919440193,0.19712899,104940.0,104930.0,1.0415537]
[1746919440397,0.19712899,104940.0,104930.0,1.13685078]
[1746919440598,0.00655349,104940.0,104930.0,1.77245792]
[1746919440900,0.19712899,104940.0,104930.0,1.49765078]
[1746919441097,0.00655349,104940.0,104930.0,1.77245792]
[1746919441695,0.19712899,104940.0,104930.0,1.77245792]
[1746919441898,0.00655349,104940.0,104930.0,1.49765078]
[1746919442097,0.00755349,104940.0,104930.0,1.49765078]
[1746919442802,0.19712899,104940.0,104930.0,0.94725708]
[1746919442997,0.38252899,104940.0,104930.0,0.51621708]
[1746919443196,0.38252899,104940.0,104930.0,0.45289078]
[1746919443608,0.38252899,104940.0,104930.0,0.26229708]
[1746919443902,0.83272899,104940.0,104930.0,0.26229708]
[1746919444105,1.09402499,104940.0,104930.0,0.26229708]
[1746919444304,0.1906118,104920.0,104910.0,1.14176]
[1746919444504,0.19063,104910.0,104900.0,0.01464321]
[1746919444712,0.1906482,104900.0,104890.0,0.8704839]
[1746919444901,0.3683482,104900.0,104890.0,0.8704839]
[1746919445101,0.5343482,104900.0,104890.0,0.8704839]
[1746919445306,0.5343482,104900.0,104890.0,0.09533342]
[1746919445504,0.8474949,104900.0,104870.0,0.2761485]
[1746919445708,0.5389,104890.0,104880.0,0.1906797]
[1746919445907,0.1781,104890.0,104880.0,0.5514797]
[1746919446106,0.3441,104890.0,104880.0,0.7322797]
[1746919446611,0.3441,104890.0,104880.0,0.82762221]
[1746919447011,0.3441,104890.0,104880.0,0.83262221]
[1746919447314,0.166,104890.0,104880.0,0.84672847]
[1746919447613,0.166,104890.0,104880.0,1.09140847]
[1746919448003,0.2608,104890.0,104880.0,1.09140847]
[1746919448202,0.4514664,104890.0,104880.0,0.66592847]
[1746919448512,0.5428664,104890.0,104880.0,0.30513327]
[1746919448903,0.5428664,104890.0,104880.0,0.11444877]
[1746919449111,0.5428664,104890.0,104880.0,0.10034251]
[1746919449412,0.9036664,104890.0,104880.0,0.10034251]
[1746919449608,1.2490104,104890.0,104880.0,0.10034251]
[1746919449807,0.1907027,104870.0,104860.0,0.2383998]
[1746919450207,0.5358027,104870.0,104860.0,0.33374231]
[1746919450413,0.5358027,104870.0,104860.0,0.09534251]
[1746919450606,0.8811627,104870.0,104860.0,0.09534251]
[1746919450806,0.4363,104870.0,104860.0,0.64686341]
[1746919451001,0.3451,104870.0,104860.0,0.64686341]
[1746919451207,0.3698027,104870.0,104860.0,0.82986341]
[1746919451506,0.3708027,104870.0,104860.0,0.83486341]
[1746919451904,0.3708027,104870.0,104860.0,0.46114251]
[1746919452219,0.5368027,104870.0,104860.0,0.64686341]
[1746919453119,0.5368027,104870.0,104860.0,0.92167055]
[1746919453320,0.5368027,104870.0,104860.0,1.09957055]
[1746919454510,0.5358027,104870.0,104860.0,1.09957055]
[1746919454717,0.5368027,104870.0,104860.0,1.10457055]
[1746919454915,0.5368027,104870.0,104860.0,0.10034251]
[1746919455118,1.2429627,104870.0,104860.0,0.10034251]
[1746919455324,0.9727627,104870.0,104860.0,0.10034251]
[1746919456317,0.7227627,104870.0,104860.0,0.10034251]
[1746919457023,0.9727627,104870.0,104860.0,0.005]
[1746919457213,0.3461,104870.0,104860.0,0.6518816]
[1746919457412,0.167,104870.0,104860.0,1.0787416]
[1746919457817,0.167,104870.0,104860.0,1.7687816]
[1746919458020,0.167,104870.0,104860.0,1.4148216]
[1746919458216,0.001,104870.0,104860.0,1.5808216]
[1746919458723,0.5206175,104880.0,104870.0,0.1907027]
[1746919458934,0.00655349,104940.0,104870.0,1.12100714]
[1746919459221,0.094,104970.0,104950.0,0.1905574]
[1746919459422,7e-08,104960.0,104950.0,0.8846974]
[1746919459626,7e-08,104960.0,104950.0,1.24750454]
[1746919459817,7e-08,104960.0,104950.0,1.35282888]
[1746919460014,7e-08,104960.0,104950.0,1.34282888]
[1746919460216,0.00655356,104960.0,104950.0,1.50882888]
[1746919460523,7e-08,104960.0,104950.0,1.50882888]
[1746919460726,7e-08,104960.0,104950.0,1.23402174]
[1746919460932,7e-08,104960.0,104950.0,1.24812566]
[1746919461115,7e-08,104960.0,104950.0,1.3569328]
[1746919462016,0.19453927,104960.0,104950.0,1.3579328]
[1746919462214,0.37849276,104960.0,104950.0,1.08312566]
[1746919463220,0.17655356,104960.0,104950.0,1.08312566]
[1746919463624,0.36709276,104960.0,104950.0,0.89256826]
[1746919463817,0.45599276,104960.0,104950.0,0.71586826]
[1746919464022,0.54739276,104960.0,104950.0,0.90642566]
[1746919464520,0.54739276,104960.0,104950.0,0.66178566]
[1746919465722,2.62302721,104960.0,104900.0,0.1504076]
[1746919465922,2.62302721,104960.0,104900.0,0.78482484]
[1746919465923,0.00655349,104910.0,104900.0,0.78482484]
[1746919466230,0.1823,104920.0,104910.0,0.28590892]
[1746919466427,0.1823,104920.0,104910.0,0.36703]
[1746919466624,0.1823,104920.0,104910.0,0.46235434]
[1746919466931,0.5513712,104950.0,104940.0,0.1905755]
[1746919467226,0.6381712,104950.0,104940.0,0.1905755]
[1746919467432,0.64472469,104950.0,104940.0,0.1905755]
[1746919467619,0.45415349,104950.0,104920.0,0.0476513]
[1746919467818,0.19714719,104930.0,104920.0,0.51306514]
[1746919468025,0.19714719,104930.0,104920.0,0.69525314]
[1746919468228,0.54244719,104930.0,104920.0,0.78135314]
[1746919468829,0.90324719,104930.0,104920.0,0.095288]
[1746919469025,0.90324719,104930.0,104920.0,0.2858998]
[1746919469428,0.90324719,104930.0,104920.0,0.2868998]
[1746919470228,0.90324719,104930.0,104920.0,0.096288]
[1746919470433,0.90324719,104930.0,104920.0,0.2868998]
[1746919470921,0.90324719,104930.0,104920.0,0.096288]
[1746919471117,0.90324719,104930.0,104920.0,0.2868998]
[1746919471622,0.54244719,104930.0,104920.0,0.2868998]
[1746919472125,0.90324719,104930.0,104920.0,0.2868998]
[1746919472322,0.3453,104930.0,104920.0,0.56170694]
[1746919472522,0.166,104930.0,104920.0,1.10400694]
[1746919473224,1.2357802,104940.0,104930.0,0.1905937]
[1746919473427,1.0452,104940.0,104930.0,0.3761937]
[1746919473631,0.7289619,104950.0,104940.0,0.1905755]
[1746919473817,0.7289619,104950.0,104940.0,0.65098264]
[1746919474218,0.5341619,104950.0,104940.0,0.65098264]
[1746919474421,0.5341619,104950.0,104940.0,0.4714635]
[1746919474732,7e-08,104960.0,104950.0,0.2905574]
[1746919474920,7e-08,104960.0,104950.0,1.20426454]
[1746919475120,7e-08,104960.0,104950.0,1.37026454]
[1746919475325,0.00655356,104960.0,104950.0,1.1907454]
[1746919475525,7e-08,104960.0,104950.0,1.46255254]
[1746919475926,7e-08,104960.0,104950.0,1.56783254]
[1746919476125,0.00400007,104960.0,104950.0,1.56883254]
[1746919476528,0.00400007,104960.0,104950.0,1.47355254]
[1746919478329,0.00400007,104960.0,104950.0,1.56883254]
[1746919478530,0.00400007,104960.0,104950.0,2.70999254]
[1746919479229,0.00157267,104980.0,104970.0,0.190521]
[1746919479429,0.00157267,104980.0,104970.0,1.40210814]
[1746919479629,0.00157267,104980.0,104970.0,1.49150814]
[1746919479830,0.19862906,104980.0,104970.0,1.58674706]
[1746919480127,0.00157267,104980.0,104970.0,0.82369992]
[1746919480435,5.766e-05,104990.0,104980.0,0.1905029]
[1746919480636,5.766e-05,104990.0,104980.0,0.91551004]
[1746919481032,5.766e-05,104990.0,104980.0,0.74522281]
[1746919481231,5.766e-05,104990.0,104980.0,1.20602281]
[1746919481431,5.766e-05,104990.0,104980.0,1.29412281]
[1746919481631,5.766e-05,104990.0,104980.0,1.31000488]
[1746919481826,5.766e-05,104990.0,104980.0,1.21000488]
[1746919482031,5.766e-05,104990.0,104980.0,0.86332367]
[1746919482227,0.19054246,104990.0,104980.0,1.22412367]
[1746919482526,5.766e-05,104990.0,104980.0,1.23913081]
[1746919482738,5.766e-05,104990.0,104980.0,1.49993081]
[1746919482926,0.00661115,104990.0,104980.0,1.13913081]
[1746919483129,0.37929595,104990.0,104980.0,1.13913081]
[1746919483331,0.18881115,104990.0,104980.0,1.5144518]
[1746919483539,0.18881115,104990.0,104980.0,1.6021518]
[1746919483839,0.18881115,104990.0,104980.0,0.7631918]
[1746919484038,0.37929595,104990.0,104980.0,0.97638466]
[1746919484229,0.18881115,104990.0,104980.0,0.96638466]
[1746919484429,0.37929595,104990.0,104980.0,0.47838466]
[1746919484638,0.54961115,104990.0,104980.0,0.96638466]
[1746919484833,0.18881115,104990.0,104980.0,0.47838466]
[1746919485237,0.18881115,104990.0,104980.0,0.97634466]
[1746919485539,0.09431115,104990.0,104980.0,1.2511518]
[1746919485743,0.00661115,104990.0,104980.0,1.2511518]
[1746919485931,0.00661115,104990.0,104980.0,1.6119518]
[1746919486137,5.766e-05,104990.0,104980.0,1.7079518]
[1746919486543,5.766e-05,104990.0,104980.0,1.6079518]
[1746919487139,0.16605766,104990.0,104980.0,1.6079518]
[1746919487341,0.13596276,104990.0,104980.0,1.7079518]
[1746919487640,0.13596276,104990.0,104980.0,1.33314466]
[1746919487641,0.14251625,104990.0,104980.0,1.33314466]
[1746919487842,0.32541625,104990.0,104980.0,1.33714466]
[1746919488942,0.13596276,104990.0,104980.0,1.43714466]
[1746919489141,0.06708966,104990.0,104980.0,1.53239666]
[1746919489842,0.06708966,104990.0,104980.0,1.43714466]
[1746919490745,6e-08,104990.0,104980.0,1.53239666]
[1746919490940,0.00655355,104990.0,104980.0,0.84918466]
[1746919491139,0.18595355,104990.0,104980.0,0.84918466]
[1746919491649,0.18595355,104990.0,104980.0,1.33682466]
[1746919492049,0.18595355,104990.0,104980.0,0.97602466]
[1746919492253,0.73723835,104990.0,104980.0,0.31128466]
[1746919492549,0.73723835,104990.0,104980.0,0.54476466]
[1746919492951,0.73723835,104990.0,104980.0,0.30128466]
[1746919493151,0.73723835,104990.0,104980.0,0.30528466]
[1746919493351,0.73723835,104990.0,104980.0,0.30497771]
[1746919493947,0.2858065,104970.0,104950.0,0.4084355]
[1746919494145,0.6466065,104970.0,104960.0,0.1905357]
[1746919494445,0.3608,104970.0,104960.0,0.1905357]
[1746919494654,0.28947449,104970.0,104960.0,0.28581009]
[1746919495151,0.26595349,104970.0,104960.0,0.6608031]
[1746919495553,0.26595349,104970.0,104960.0,0.3040031]
[1746919496050,0.167,104970.0,104960.0,0.7648031]
[1746919496254,0.167,104970.0,104960.0,0.8604031]
[1746919496548,0.167,104970.0,104960.0,0.9604031]
[1746919496750,0.1431536,104970.0,104960.0,1.06567109]
[1746919497047,0.09620941,104970.0,104960.0,0.9674031]
[1746919497249,0.05221061,104970.0,104960.0,0.9674031]
[1746919497442,0.00382332,104970.0,104960.0,0.9774031]
[1746919497643,0.773,104980.0,104960.0,0.7868674]
[1746919497843,0.09515349,104980.0,104970.0,1.49728814]
[1746919498048,0.48273333,105000.0,104990.0,0.1904848]
[1746919498244,0.66775158,105000.0,104990.0,0.1904848]
[1746919498443,0.57915158,105000.0,104990.0,0.28572743]
[1746919498644,0.3608,105070.0,104990.0,0.97984263]
[1746919498849,0.1903578,105060.0,105050.0,0.0951838]
[1746919499044,0.2788578,105060.0,105050.0,0.46518314]
[1746919499244,0.7348458,105060.0,105050.0,0.190376]
[1746919499550,0.9848458,105060.0,105050.0,0.09518823]
[1746919499751,0.6396578,105060.0,105050.0,0.09518823]
[1746919500050,0.4448578,105060.0,105050.0,0.56037137]
[1746919500354,1.1508458,105060.0,105050.0,0.09518823]
[1746919500552,0.1903941,105040.0,105030.0,0.87972681]
[1746919500750,0.4703793,105050.0,105040.0,0.1903941]
[1746919500950,0.4703793,105050.0,105040.0,0.28558233]
[1746919501145,0.6363793,105050.0,105040.0,0.5511941]
[1746919501340,0.1903941,105040.0,105030.0,1.16532491]
[1746919501547,0.2788941,105040.0,105030.0,1.16232491]
[1746919501746,0.2788941,105040.0,105030.0,1.2575222]
[1746919501941,0.0885,105040.0,105030.0,1.2575222]
[1746919502147,0.0885,105040.0,105030.0,0.64440916]
[1746919502148,0.4448941,105040.0,105030.0,0.64440916]
[1746919502448,0.4448941,105040.0,105030.0,0.65886228]
[1746919502647,0.2545,105040.0,105030.0,0.93366942]
[1746919502848,0.4488941,105040.0,105030.0,0.93366942]
[1746919503246,0.4488941,105040.0,105030.0,0.65886228]
[1746919503446,0.4468941,105040.0,105030.0,0.46845008]
[1746919503647,0.4468941,105040.0,105030.0,0.65886228]
[1746919503955,1.1529021,105040.0,105030.0,0.01745312]
[1746919504153,1.1529021,105040.0,105000.0,0.00099995]
[1746919504154,0.1904485,105010.0,105000.0,0.00099995]
[1746919504347,0.1904485,105010.0,105000.0,0.55226655]
[1746919504544,0.3690485,105010.0,105000.0,0.36179995]
[1746919504750,0.2380329,105030.0,105020.0,0.0952096]
[1746919504947,0.1904303,105020.0,105010.0,0.646457]
[1746919505149,0.0954,105020.0,105010.0,0.646457]
[1746919505450,0.2858303,105020.0,105010.0,0.74166335]
[1746919505646,0.3810543,105020.0,105010.0,0.09520635]
[1746919505847,0.1904485,105010.0,105000.0,0.38110017]
[1746919506155,0.4488485,105010.0,105000.0,0.30099126]
[1746919506456,0.1904666,105000.0,104990.0,0.5512841]
[1746919506651,0.1904848,104990.0,104980.0,0.60033908]
[1746919507052,0.2857368,104990.0,104980.0,0.45746214]
[1746919507247,0.1905029,104980.0,104970.0,0.23914644]
[1746919507455,0.2857629,104980.0,104970.0,0.01544908]
[1746919507754,0.1905029,104980.0,104970.0,0.11070078]
[1746919507949,0.4041097,104990.0,104980.0,0.1905029]
[1746919508146,0.2381097,104990.0,104980.0,0.5513029]
[1746919508751,0.2381097,104990.0,104980.0,0.4560517]
[1746919508946,0.2381097,104990.0,104980.0,0.5513029]
[1746919509146,0.4041097,104990.0,104980.0,0.4560517]
[1746919509355,0.4041097,104990.0,104980.0,0.5523029]
[1746919509754,0.4987097,104990.0,104980.0,0.2867546]
[1746919510155,0.4987097,104990.0,104980.0,0.6475546]
[1746919510460,0.5882097,104990.0,104980.0,0.2867546]
[1746919511263,0.5882097,104990.0,104980.0,0.2857546]
[1746919511463,0.5922097,104990.0,104980.0,0.2857546]
[1746919511654,0.5952097,104990.0,104980.0,0.2857546]
[1746919511958,0.5952097,104990.0,104980.0,0.6465546]
[1746919512260,0.5902097,104990.0,104980.0,0.2857546]
[1746919512455,0.5902097,104990.0,104980.0,0.0952517]
[1746919512658,0.5902097,104990.0,104980.0,0.2857546]
[1746919512659,1.0462617,104990.0,104980.0,0.2857546]
[1746919512855,0.0951947,105050.0,105000.0,0.4761286]
[1746919513050,0.1909,105040.0,105030.0,0.1904122]
[1746919513253,0.3812941,105040.0,105030.0,0.1904122]
[1746919513453,0.3812941,105040.0,105030.0,0.6464639]
[1746919513759,0.1909,105040.0,105030.0,0.9235159]
[1746919514160,0.3569,105040.0,105030.0,0.9235159]
[1746919514349,0.5472941,105040.0,105030.0,0.7386639]
[1746919514754,0.5472941,105040.0,105030.0,0.6484639]
[1746919514959,0.5472941,105040.0,105030.0,0.66443754]
[1746919516454,0.0485939,105060.0,105030.0,0.66443754]
[1746919516455,0.1913578,105060.0,105050.0,0.190376]
[1746919516960,0.2796578,105060.0,105050.0,0.551176]
[1746919517162,0.5329578,105060.0,105050.0,0.64638235]
[1746919517463,0.5329578,105060.0,105050.0,0.28558235]
[1746919517653,0.5329578,105060.0,105050.0,0.64638235]
[1746919518461,0.5339578,105060.0,105050.0,0.73438235]
[1746919519358,0.5339578,105060.0,105050.0,0.73538235]
[1746919520058,0.8947578,105060.0,105050.0,0.001]
[1746919520262,0.8791458,105060.0,105050.0,0.001]
[1746919521259,1.2399458,105060.0,105050.0,0.001]
[1746919522163,0.1903941,105040.0,105030.0,0.20438584]
[1746919522361,0.1903941,105040.0,105030.0,0.56518584]
[1746919522555,0.4708021,105040.0,105030.0,0.01397364]
[1746919522757,0.1904122,105030.0,105020.0,0.3608]
[1746919523060,0.5416122,105030.0,105020.0,0.3608]
[1746919523265,0.6368282,105030.0,105020.0,0.5512303]
[1746919523657,0.5416122,105030.0,105020.0,0.3608]
[1746919523861,0.1904303,105020.0,105010.0,0.8814675]
[1746919524164,0.5369303,105020.0,105010.0,1.28987082]
[1746919524363,0.6321543,105020.0,105010.0,1.00724952]
[1746919524557,0.6321543,105020.0,105010.0,0.81681542]
[1746919524762,0.1904666,105000.0,104990.0,0.7412231]
[1746919525069,0.3564666,105000.0,104990.0,0.74230819]
[1746919525265,0.4517106,105000.0,104990.0,0.45602449]
[1746919525464,0.6316106,105000.0,104990.0,0.3608]
[1746919525967,0.1904848,104990.0,104980.0,0.83847704]
[1746919526166,0.5378848,104990.0,104980.0,0.64853144]
[1746919526468,0.5378848,104990.0,104980.0,0.83759753]
[1746919526769,0.5378848,104990.0,104980.0,0.93239753]
[1746919527155,0.5378848,104990.0,104980.0,0.93539753]
[1746919527664,0.5378848,104990.0,104980.0,0.55484263]
[1746919527862,0.5378848,104990.0,104980.0,0.74734553]
[1746919528661,0.166,104990.0,104980.0,0.93739753]
[1746919528863,0.3564848,104990.0,104980.0,1.02449753]
[1746919529260,0.1904848,104990.0,104980.0,1.02449753]
[1746919529464,0.2787848,104990.0,104980.0,1.02449753]
[1746919529661,0.3701848,104990.0,104980.0,0.5564]
[1746919529860,0.3701848,104990.0,104980.0,0.7469029]
[1746919530057,0.3701848,104990.0,104980.0,0.8421546]
[1746919530263,0.4447848,104990.0,104980.0,0.8421546]
[1746919530461,0.3564848,104990.0,104980.0,0.9374066]
[1746919530966,0.4447848,104990.0,104980.0,0.9374066]
[1746919531173,0.1904848,104990.0,104980.0,0.9374066]
[1746919532266,0.2787848,104990.0,104980.0,0.9374066]
[1746919532868,0.3675848,104990.0,104980.0,0.9374066]
[1746919533067,0.3675848,104990.0,104980.0,0.6516517]
[1746919533259,0.5335848,104990.0,104980.0,0.5568517]
[1746919534072,0.5335848,104990.0,104980.0,0.4616]
[1746919534860,0.6288368,104990.0,104980.0,0.3658]
[1746919535167,1.14480394,104990.0,104980.0,0.3658]
[1746919535369,0.1905029,104980.0,104970.0,0.00100024]
[1746919535673,0.7330029,104980.0,104970.0,0.00100024]
[1746919535874,0.8282629,104980.0,104970.0,0.00100024]
[1746919536071,0.6334629,104980.0,104970.0,0.00100024]
[1746919536874,0.9942629,104980.0,104970.0,0.00100024]
[1746919537075,0.6334629,104980.0,104970.0,0.00100024]
[1746919537969,0.6334629,104980.0,104970.0,0.00200024]
[1746919538671,0.6334629,104980.0,104970.0,0.00300024]
[1746919539870,0.9942629,104980.0,104970.0,0.00300024]
[1746919540068,2.29447004,104980.0,104970.0,0.00300024]
[1746919540269,0.1905392,104960.0,104950.0,0.0944]
[1746919540470,0.5270192,104960.0,104950.0,0.0944]
[1746919540665,0.1905574,104950.0,104940.0,0.46030052]
[1746919540971,0.3750574,104950.0,104940.0,0.55146129]
[1746919541170,0.3750574,104950.0,104940.0,0.47164476]
[1746919541171,0.5410574,104950.0,104940.0,0.47164476]
[1746919541372,0.6363454,104950.0,104940.0,0.37638399]
[1746919541570,0.1906118,104920.0,104910.0,0.00100081]
[1746919541771,0.1905755,104940.0,104930.0,0.2382262]
[1746919541976,0.1905755,104940.0,104930.0,1.0568262]
[1746919542173,0.3565755,104940.0,104930.0,1.2464782]
[1746919542673,0.166,104940.0,104930.0,1.34177528]
[1746919542872,0.2858252,104960.0,104950.0,0.1905574]
[1746919543080,0.4518252,104960.0,104950.0,0.5513574]
[1746919543275,0.4041882,104960.0,104950.0,0.6466094]
[1746919543473,0.3565392,104960.0,104950.0,1.19970648]
[1746919543670,0.3565392,104960.0,104950.0,1.19870648]
[1746919544272,0.1915392,104960.0,104950.0,1.19870648]
[1746919545872,0.1905574,104950.0,104940.0,0.66098329]
[1746919546072,0.4512574,104950.0,104940.0,0.94163529]
[1746919546266,0.4512574,104950.0,104940.0,1.03691421]
[1746919546482,0.4512574,104950.0,104940.0,0.29501071]
[1746919546675,0.5421574,104950.0,104940.0,0.29501071]
[1746919546978,0.1905937,104930.0,104920.0,0.3608]
[1746919547177,0.1905937,104930.0,104920.0,0.641452]
[1746919547366,0.1905937,104930.0,104920.0,0.641488]
[1746919547570,0.3790937,104930.0,104920.0,0.1854]
[1746919548175,0.5450937,104930.0,104920.0,0.0929]
[1746919548472,1.0012017,104930.0,104920.0,0.002]
[1746919548875,0.6404017,104930.0,104920.0,0.004]
[1746919549667,0.6404017,104930.0,104920.0,0.002]
[1746919549867,0.1906118,104920.0,104910.0,0.55110081]
[1746919550078,0.5437118,104920.0,104910.0,0.55110081]
[1746919550579,1.17931894,104920.0,104910.0,0.09390081]
[1746919551370,1.17931894,104920.0,104910.0,0.00100081]
[1746919551572,1.42059894,104920.0,104910.0,0.00200081]
[1746919551777,1.51591494,104920.0,104910.0,0.00400081]
[1746919552276,1.60731494,104920.0,104910.0,0.00400081]
[1746919552481,1.60731494,104920.0,104910.0,0.00200081]
[1746919552978,1.51199894,104920.0,104910.0,0.00200081]
[1746919553185,1.51199894,104920.0,104910.0,0.19280081]